fUST/lending_fUST_20240123
["ID","MTS","AMOUNT","RATE_DAILY","PERIOD"]
[312541821,1705953047015,-1328.94549463,6.852e-05,2]
[312541822,1705953047026,-2353.52873167,6.852e-05,2]
[312541823,1705953047035,-261.13863683,6.852e-05,2]
[312541824,1705953047045,-1993.49479484,6.852e-05,2]
[312541825,1705953047055,-211.53795191,0.00027394,2]
[312541826,1705953047064,-155.18946814,0.00027394,2]
[312541827,1705953047074,-654.91148852,0.00027394,2]
[312541828,1705953047083,-500.0,0.00027395,2]
[312541829,1705953047093,-500.0,0.00027395,2]
[312541830,1705953047103,-500.0,0.00027395,2]
[312541831,1705953047113,-500.0,0.00027395,2]
[312541832,1705953047122,-163.07504424,0.00027395,2]
[312541833,1705953047132,-500.0,0.00027395,2]
[312541834,1705953047141,-500.0,0.00027395,2]
[312541835,1705953047151,-7993.43501946,0.000278,2]
[312541844,1705953047329,-1000.0114866,0.000278,2]
[312541845,1705953047340,-2695.85561824,0.000278,2]
[312541848,1705953047352,-31.48278414,0.000278,2]
[312541849,1705953047361,-500.0,0.00027808,2]
[312541851,1705953047372,-2011.36647896,0.00027855,2]
[312541854,1705953047384,-11608.49999995,0.00027855,2]
[312541856,1705953047396,-4205.89,0.00027855,2]
[312542424,1705953167021,-154.93802479,6.771e-05,2]
[312542425,1705953167054,-301.93072688,6.771e-05,2]
[312542426,1705953167087,-1242.55121556,6.771e-05,2]
[312542427,1705953167119,-903.63325516,6.772e-05,2]
[312542428,1705953167151,-294.88989743,6.772e-05,2]
[312542429,1705953167184,-711.772838,6.772e-05,2]
[312542430,1705953167216,-211.53795191,6.773e-05,2]
[312542431,1705953167249,-2039.05381066,6.773e-05,2]
[312542432,1705953167280,-154.93802479,6.774e-05,2]
[312542433,1705953167315,-329.53567279,6.774e-05,2]
[312542434,1705953167348,-185.41016331,6.776e-05,2]
[312542435,1705953167706,-34728.22795638,6.847e-05,2]
[312542437,1705953175949,-977.99536434,6.771e-05,2]
[312542438,1705953175989,-18044.00927132,6.772e-05,2]
[312542467,1705953879178,-876.39189184,6.028e-05,2]
[312542468,1705953879199,-561.64006482,6.028e-05,2]
[312542469,1705953879219,-3130.04768523,6.028e-05,2]
[312542470,1705953879242,-262.3367316,6.028e-05,2]
[312542471,1705953879261,-294.88989743,6.029e-05,2]
[312542472,1705953879282,-178.91876323,6.029e-05,2]
[312542473,1705953879302,-167.00483785,6.029e-05,2]
[312542474,1705953879325,-4813.95392208,6.029e-05,2]
[312542475,1705953879345,-246.21885002,6.03e-05,2]
[312542476,1705953879366,-261.13863683,6.03e-05,2]
[312542477,1705953879386,-211.53795191,6.03e-05,2]
[312542478,1705953879406,-711.772838,6.03e-05,2]
[312542479,1705953879427,-154.92253873,6.03e-05,2]
[312542480,1705953879446,-13719.8221343,6.03e-05,2]
[312542481,1705953879468,-21686.1459775,6.03e-05,2]
[312542482,1705953879488,-19078.25727863,6.03e-05,2]
[312542483,1705953891458,151.42429694,5.82e-05,2]
[312542484,1705953897738,21686.1459775,5.968e-05,2]
[312542487,1705953921768,20505.433724,5.964e-05,2]
[312542494,1705954069900,244.96230118,5.697e-05,2]
[312542497,1705954089813,261.13863683,6e-05,2]
[312542498,1705954091287,526.75292248,6e-05,2]
[312542499,1705954092554,301.93072688,6e-05,2]
[312542500,1705954093635,3485.76836938,6e-05,2]
[312542501,1705954093872,1579.39395429,6e-05,2]
[312542502,1705954096235,3746.05559912,6e-05,2]
[312542503,1705954100154,588.35431441,6e-05,2]
[312542520,1705954102991,175.22193864,6e-05,2]
[312542521,1705954103700,1253.41868812,6e-05,2]
[312542522,1705954105502,452.74208012,6e-05,2]
[312542523,1705954105788,154.92253873,6e-05,2]
[312542524,1705954106261,1439.19025016,6e-05,2]
[312542525,1705954110409,154.92253873,6e-05,2]
[312542526,1705954110698,260.87494487,6e-05,2]
[312542527,1705954113614,1472.60828281,5.881e-05,2]
[312542528,1705954115429,178.76422807,6e-05,2]
[312542529,1705954118566,13719.8221343,6e-05,2]
[312542530,1705954123051,8761.98403332,6e-05,2]
[312542531,1705954123408,329.53567279,6e-05,2]
[312542532,1705954125144,561.64006482,6e-05,2]
[312542533,1705954125298,19867.27856324,6e-05,2]
[312542534,1705954126005,452.74208012,6e-05,2]
[312542535,1705954127982,680.10116762,5.999e-05,2]
[312542536,1705954128105,211.53795191,5.999e-05,2]
[312542537,1705954130302,156.02710907,5.999e-05,2]
[312542538,1705954130366,154.92253873,6e-05,2]
[312542539,1705954130753,20874.58230083,6e-05,2]
[312542540,1705954131120,18904.87156494,6e-05,2]
[312542541,1705954132340,36292.37629851,6e-05,2]
[312542542,1705954132367,44915.00835397,6e-05,2]
[312542543,1705954132810,595.13721922,6e-05,2]
[312542544,1705954134960,154.92253873,6e-05,2]
[312542545,1705954139265,154.92253873,5.999e-05,2]
[312542546,1705954139929,522.11697668,6e-05,2]
[312542547,1705954143199,36965.59360405,6e-05,2]
[312542548,1705954144142,154.92253873,6e-05,2]
[312542549,1705954144931,1603.2097273,6e-05,2]
[312542550,1705954145438,4103.73450027,6e-05,2]
[312542551,1705954145755,1242.55121556,6e-05,2]
[312542552,1705954148914,2039.05381066,6e-05,2]
[312542553,1705954150743,20874.58230083,6e-05,2]
[312542554,1705954150775,3973.85906822,6e-05,2]
[312542555,1705954153916,522.11697668,6e-05,2]
[312542556,1705954157264,309.78320129,6e-05,2]
[312542557,1705954161257,19345.15764194,6e-05,2]
[312542558,1705954161421,4103.73450027,5.94e-05,2]
[312542559,1705954161649,1242.55121556,6e-05,2]
[312542560,1705954162876,2039.05381066,6e-05,2]
[312542561,1705954164973,1603.2097273,6e-05,2]
[312542564,1705954166144,154.92253873,6e-05,2]
[312542565,1705954166725,3973.85906822,6e-05,2]
[312542566,1705954170756,20874.58230083,6e-05,2]
[312542567,1705954177664,781.24172592,6e-05,2]
[312542568,1705954179005,522.11697668,6e-05,2]
[312542576,1705954181430,2186.21978992,5.94e-05,2]
[312542578,1705954182150,225.10346489,6e-05,2]
[312542579,1705954182721,3973.85906822,6e-05,2]
[312542581,1705954190734,20874.58230083,6e-05,2]
[312542582,1705954195917,522.11697668,6e-05,2]
[312542583,1705954202726,3134.90712851,6e-05,2]
[312542584,1705954206711,154.92253873,6e-05,2]
[312542585,1705954211000,452.74208012,6e-05,2]
[312542586,1705954211632,18904.87156494,6e-05,2]
[312542587,1705954212025,265.48221302,6e-05,2]
[312542588,1705954212834,1696.62198985,6e-05,2]
[312542589,1705954212863,154.92253873,6e-05,2]
[312542590,1705954214173,1993.49479484,6e-05,2]
[312542591,1705954219629,19701.14547142,6e-05,2]
[312542592,1705954230886,1579.39395429,6e-05,2]
[312542722,1705954233786,301.93072688,6e-05,2]
[312542773,1705954237952,1640.08201467,6e-05,2]
[312542775,1705954237965,-631.79888623,6.001e-05,2]
[312542777,1705954237975,-261.05411193,6.001e-05,2]
[312542779,1705954237984,-588.23188464,6.001e-05,2]
[312542781,1705954237993,-2417.10998492,6.001e-05,2]
[312542783,1705954238005,-175.22193864,6.001e-05,2]
[312542785,1705954238014,-260.87494487,6.001e-05,2]
[312542787,1705954238023,-243.49636215,6.001e-05,2]
[312542789,1705954238033,-1439.19025016,6.001e-05,2]
[312542791,1705954238042,-178.69540057,6.001e-05,2]
[312542793,1705954238051,-13719.8221343,6.001e-05,2]
[312542795,1705954238060,-194.08415854,6.001e-05,2]
[312542797,1705954238070,-348.52623184,6.001e-05,2]
[312542799,1705954238080,-19867.27856324,6.001e-05,2]
[312542801,1705954238094,-277.29980319,6.001e-05,2]
[312542803,1705954238104,-155.90404037,6.001e-05,2]
[312542805,1705954238114,-595.13721922,6.001e-05,2]
[312542807,1705954238123,-277.34225407,6.001e-05,2]
[312542809,1705954238134,-329.53567279,6.002e-05,2]
[312542811,1705954238143,-8761.98403332,6.002e-05,2]
[312542813,1705954238153,-154.92253873,6.003e-05,2]
[312542815,1705954238162,-1253.41868812,6.003e-05,2]
[312542817,1705954238173,-154.92253873,6.006e-05,2]
[312542819,1705954238182,-157.81534003,6.017e-05,2]
[312542821,1705954238192,-452.74208012,6.017e-05,2]
[312542823,1705954238202,-1696.62198985,6.017e-05,2]
[312542825,1705954238212,-315.49678543,6.017e-05,2]
[312542827,1705954238221,-18904.87156494,6.017e-05,2]
[312542829,1705954238230,-19701.14547142,6.017e-05,2]
[312542831,1705954238239,-1993.49479484,6.017e-05,2]
[312542833,1705954238249,-268.64134167,6.017e-05,2]
[312542835,1705954238258,-11742.72096368,6.018e-05,2]
[312542837,1705954238267,-81207.38465248,6.019e-05,2]
[312542838,1705954238276,-196.27979347,6.022e-05,2]
[312542840,1705954238286,-19834.98171883,6.022e-05,2]
[312542842,1705954238295,-939.67840321,6.028e-05,2]
[312542844,1705954238304,-262.3367316,6.028e-05,2]
[312542846,1705954238313,-330.86871849,6.028e-05,2]
[312542848,1705954238323,-716.75305059,6.028e-05,2]
[312542850,1705954238333,-154.98450155,6.028e-05,2]
[312542852,1705954238344,-178.91876323,6.028e-05,2]
[312542853,1705954238353,-876.39189184,6.028e-05,2]
[312542855,1705954238364,-616.7500659,6.028e-05,2]
[312542857,1705954238373,-295.44317369,6.03e-05,2]
[312542859,1705954238385,-711.64153599,6.03e-05,2]
[312542861,1705954238394,-297.66457919,6.03e-05,2]
[312542863,1705954238405,-201.18552161,6.03e-05,2]
[312542865,1705954238414,-604.32297163,6.051e-05,2]
[312542867,1705954238424,-555.36580163,6.118e-05,2]
[312542869,1705954238433,-237.63369757,6.118e-05,2]
[312542871,1705954238443,-309.69031278,6.156e-05,2]
[312542873,1705954238452,-2073.9279871,6.159e-05,2]
[312542875,1705954238461,-470.67463112,6.159e-05,2]
[312542877,1705954238470,-2103.40493137,6.159e-05,2]
[312542879,1705954238479,-375.44011543,6.672e-05,2]
[312542881,1705954238489,-185.41016331,6.676e-05,2]
[312542883,1705954238500,-243.13309117,6.768e-05,2]
[312542885,1705954238509,-161.58015572,6.768e-05,2]
[312542886,1705954238518,-284.85781043,6.768e-05,2]
[312542888,1705954238527,-309.69031278,6.768e-05,2]
[312542890,1705954238536,-198.35421752,6.768e-05,2]
[312542892,1705954238545,-2836.67729407,6.768e-05,2]
[312542894,1705954238555,-309.81413939,6.768e-05,2]
[312542896,1705954238564,-309.73681733,6.768e-05,2]
[312542898,1705954238574,-423.74941788,6.768e-05,2]
[312542900,1705954238584,-1293.3633064,6.769e-05,2]
[312542902,1705954238595,-267.98689299,6.769e-05,2]
[312542904,1705954238604,-154.95351395,6.845e-05,2]
[312542906,1705954238613,-154.95380821,6.845e-05,2]
[312542908,1705954238622,-289.72366648,6.845e-05,2]
[312542910,1705954238631,-423.75661732,6.845e-05,2]
[312542912,1705954238640,-154.95351395,6.846e-05,2]
[312542913,1705954238650,-166.67526662,6.846e-05,2]
[312542915,1705954238659,-158.61013242,6.848e-05,2]
[312542917,1705954238668,-230.1417358,6.849e-05,2]
[312542919,1705954238677,-15915.17297811,7e-05,2]
[312542920,1705954238687,-24900.0,7.397e-05,2]
[312542921,1705954238696,-1741.02914519,8e-05,2]
[312542922,1705954238706,-213.43652609,0.0001,2]
[312542923,1705954238717,-7960.18375069,0.0001,2]
[312542924,1705954238726,-154.93802479,0.0001,2]
[312542925,1705954238736,-5000.0,0.0001,2]
[312542926,1705954238745,-154.93802479,0.0001,2]
[312542927,1705954238754,-834.40610543,0.0001,2]
[312542928,1705954238764,-1468.66343637,0.0001,2]
[312542929,1705954238774,-47634.89020155,0.0001,2]
[312542930,1705954238784,-215.4834977,0.00011222,2]
[312542931,1705954238794,-196.27979344,0.0001138,2]
[312542932,1705954238803,-190.58739142,0.000129,2]
[312542933,1705954238813,-190.58739141,0.000129,2]
[312542934,1705954238823,-286.67398334,0.0001369,2]
[312542935,1705954238832,-13222.2295784,0.00013699,2]
[312542936,1705954238846,-2047.5072293,0.00013699,2]
[312542937,1705954238856,-1266.7890629,0.00015,2]
[312542938,1705954238865,-687.96014716,0.00015,2]
[312542939,1705954238875,-154.93802479,0.00015,2]
[312542940,1705954238884,-193.33123141,0.00015,2]
[312542941,1705954238893,-4580.55992462,0.0001631,2]
[312542942,1705954238903,-272.55691777,0.000165,2]
[312542943,1705954238912,-190.58739141,0.00016711,2]
[312542944,1705954238921,-196.27979344,0.00016838,2]
[312542945,1705954238931,-874.37604694,0.00017235,2]
[312542946,1705954238940,-10537.96841435,0.00017898,2]
[312542947,1705954238950,-1582.38308236,0.00019,2]
[312542948,1705954238960,-163.788107,0.00019178,2]
[312542949,1705954238969,-164.428477,0.00019178,2]
[312542950,1705954238979,-208.611055,0.00019213,2]
[312542951,1705954238989,-271.23230235,0.0002,2]
[312542952,1705954238999,-1197.97622761,0.0002,2]
[312542953,1705954239008,-323.13003236,0.0002,2]
[312542954,1705954239017,-154.93802479,0.0002,2]
[312542955,1705954239028,-154.93802479,0.0002,2]
[312542956,1705954239038,-154.93802479,0.0002,2]
[312542957,1705954239047,-678.6288756,0.0002,2]
[312542958,1705954239056,-667.24083957,0.0002,2]
[312542960,1705954239066,-200.0,0.0002,2]
[312542962,1705954239075,-154.93802479,0.0002,2]
[312542964,1705954239084,-2134.35553655,0.0002,5]
[312542966,1705954239097,-1632.05496306,0.0002,2]
[312542968,1705954239106,-151.48485454,0.0002,2]
[312542970,1705954239118,-232.97414454,0.00021,2]
[312542972,1705954239128,-8289.76804343,0.00021,2]
[312542974,1705954239138,-166.666666,0.00021918,2]
[312542987,1705954239256,-7616.88966956,0.00022,2]
[312542989,1705954239266,-293.4468762,0.00022,4]
[312542991,1705954239276,-425.98515357,0.00022,2]
[312542993,1705954239286,-190.58739141,0.00022116,2]
[312542996,1705954239296,-9060.45794745,0.00022221,2]
[312542999,1705954239306,-196.27979344,0.00022296,2]
[312543001,1705954239315,-166.666666,0.00022431,2]
[312543003,1705954239325,-166.666666,0.00022944,2]
[312543005,1705954239334,-166.666666,0.00023456,2]
[312543008,1705954239346,-166.666666,0.00023969,2]
[312543010,1705954239355,-4014.03339386,0.00024,2]
[312543012,1705954239364,-166.666666,0.00024482,2]
[312543013,1705954239373,-219.222565,0.00024658,2]
[312543015,1705954239383,-165.308374,0.00024658,2]
[312543017,1705954239392,-380.0,0.00024658,2]
[312543018,1705954239402,-824.33300328,0.000247,2]
[312543020,1705954239411,-7381.29040931,0.00025,2]
[312543022,1705954239420,-679.71377977,0.00025,2]
[312543024,1705954239430,-258.29090625,0.00025,2]
[312543025,1705954239439,-4723.24260277,0.00025,2]
[312543026,1705954239448,-250.46370539,0.00025,2]
[312543028,1705954239457,-154.98450155,0.00025,2]
[312543030,1705954239467,-1500.40236428,0.00025,2]
[312543032,1705954239476,-14739.84371486,0.00025,10]
[312543033,1705954239485,-25330.29672088,0.00025,2]
[312543035,1705954239494,-1002.17175487,0.00025,2]
[312543037,1705954239504,-9807.92282386,0.00025195,2]
[312543039,1705954239512,-9286.90575802,0.00025297,2]
[312543040,1705954239521,-219.222565,0.0002544,2]
[312543042,1705954239530,-165.308374,0.00025753,2]
[312543044,1705954239539,-148612.35004414,0.00026,2]
[312543045,1705954239548,-219.222565,0.00026223,2]
[312543047,1705954239558,-497.79734774,0.0002646,5]
[312543048,1705954239568,-165.308374,0.00026849,2]
[312543049,1705954239577,-290.16476431,0.00027,2]
[312543050,1705954239588,-219.222565,0.00027006,2]
[312543052,1705954239598,-670.58761481,0.00027393,2]
[312543053,1705954239607,-644.40876473,0.00027393,2]
[312543055,1705954239617,-16434.44305314,0.00027395,2]
[312543056,1705954239627,-157.26757479,0.00027397,2]
[312543058,1705954239636,-500.0,0.00027397,2]
[312543059,1705954239646,-22431.79,0.00027397,3]
[312543061,1705954239655,-190.58739141,0.0002752,3]
[312543063,1705954239665,-500.0,0.00027534,2]
[312543064,1705954239674,-500.0,0.00027671,2]
[312543065,1705954239684,-196.27979344,0.00027754,2]
[312543066,1705954239694,-219.222565,0.00027789,2]
[312543067,1705954239703,-38560.35367316,0.000278,2]
[312543068,1705954239712,-163.995668,0.000278,2]
[312543069,1705954239721,-151.0,0.00027854,2]
[312543070,1705954239731,-151.0,0.00027854,2]
[312543071,1705954239740,-10000.0,0.00027854,2]
[312543072,1705954239750,-10000.0,0.00027854,2]
[312543073,1705954239760,-10000.0,0.00027854,2]
[312543074,1705954239769,-10000.0,0.00027854,2]
[312543075,1705954239779,-450.0,0.00027854,2]
[312543076,1705954239788,-450.0,0.00027854,2]
[312543077,1705954239798,-193.29520792,0.00027854,2]
[312543078,1705954239807,-350.30332964,0.00027854,2]
[312543079,1705954239817,-500.0,0.00027854,2]
[312543080,1705954239827,-500.0,0.00027854,2]
[312543081,1705954239837,-500.0,0.00027854,2]
[312543082,1705954239847,-500.0,0.00027854,2]
[312543083,1705954239856,-500.0,0.00027854,2]
[312543084,1705954239865,-599.29543599,0.00027854,2]
[312543085,1705954239874,-500.0,0.00027854,2]
[312543086,1705954239883,-500.0,0.00027854,2]
[312543087,1705954239893,-500.0,0.00027854,2]
[312543088,1705954239902,-500.0,0.00027854,2]
[312543089,1705954239911,-375.13395655,0.00027854,2]
[312543090,1705954239921,-500.0,0.00027854,2]
[312543091,1705954239930,-500.0,0.00027854,2]
[312543092,1705954239939,-500.0,0.00027854,2]
[312543093,1705954239949,-500.0,0.00027854,2]
[312543094,1705954239958,-500.0,0.00027854,2]
[312543095,1705954239968,-500.0,0.00027854,2]
[312543096,1705954239977,-397.84502655,0.00027854,2]
[312543097,1705954239986,-500.0,0.00027854,2]
[312543098,1705954239996,-500.0,0.00027854,2]
[312543099,1705954240005,-500.0,0.00027854,2]
[312543100,1705954240014,-500.0,0.00027854,2]
[312543101,1705954240023,-500.0,0.00027854,2]
[312543102,1705954240032,-500.0,0.00027854,2]
[312543103,1705954240041,-500.0,0.00027854,2]
[312543104,1705954240051,-446.96849158,0.00027854,2]
[312543105,1705954240060,-500.0,0.00027854,2]
[312543106,1705954240069,-501.03453454,0.00027854,2]
[312543107,1705954240078,-500.0,0.00027854,2]
[312543108,1705954240088,-500.0,0.00027854,2]
[312543109,1705954240099,-500.0,0.00027854,2]
[312543110,1705954240108,-500.0,0.00027854,2]
[312543111,1705954240119,-500.0,0.00027854,2]
[312543112,1705954240129,-500.0,0.00027854,2]
[312543113,1705954240139,-500.0,0.00027854,2]
[312543114,1705954240148,-500.0,0.00027854,2]
[312543115,1705954240157,-500.0,0.00027854,2]
[312543116,1705954240167,-500.0,0.00027854,2]
[312543117,1705954240176,-500.0,0.00027854,2]
[312543118,1705954240185,-500.0,0.00027854,2]
[312543119,1705954240195,-500.0,0.00027854,2]
[312543120,1705954240210,-500.0,0.00027854,2]
[312543121,1705954240220,-500.0,0.00027854,2]
[312543122,1705954240229,-606.43184872,0.00027854,2]
[312543123,1705954240239,-500.0,0.00027854,2]
[312543124,1705954240249,-500.0,0.00027854,2]
[312543125,1705954240258,-940.08583419,0.00027854,2]
[312543126,1705954240268,-383.07588034,0.00027854,2]
[312543127,1705954240277,-940.08583419,0.00027854,2]
[312543128,1705954240287,-940.08583419,0.00027854,2]
[312543129,1705954240297,-940.08583419,0.00027854,2]
[312543130,1705954240307,-940.08583419,0.00027854,2]
[312543131,1705954240316,-940.08583419,0.00027854,2]
[312543132,1705954240326,-940.08583419,0.00027854,2]
[312543133,1705954240336,-500.0,0.00027854,2]
[312543134,1705954240345,-969.80300516,0.00027854,2]
[312543135,1705954240355,-940.08583419,0.00027854,2]
[312543136,1705954240364,-969.80300516,0.00027854,2]
[312543137,1705954240374,-940.08583419,0.00027854,2]
[312543138,1705954240383,-969.80300516,0.00027854,2]
[312543139,1705954240392,-969.80300516,0.00027854,2]
[312543140,1705954240402,-500.0,0.00027854,2]
[312543141,1705954240412,-969.80300516,0.00027854,2]
[312543142,1705954240421,-940.08583419,0.00027854,2]
[312543143,1705954240431,-500.0,0.00027854,2]
[312543144,1705954240440,-500.0,0.00027854,2]
[312543145,1705954240450,-969.80300516,0.00027854,2]
[312543146,1705954240459,-940.08583419,0.00027854,2]
[312543147,1705954240469,-500.0,0.00027854,2]
[312543148,1705954240478,-969.80300516,0.00027854,2]
[312543149,1705954240488,-500.0,0.00027854,2]
[312543150,1705954240498,-969.80300516,0.00027854,2]
[312543151,1705954240507,-500.0,0.00027854,2]
[312543152,1705954240516,-940.08583419,0.00027854,2]
[312543153,1705954240525,-969.80300516,0.00027854,2]
[312543154,1705954240535,-940.08583419,0.00027854,2]
[312543155,1705954240544,-940.08583419,0.00027854,2]
[312543156,1705954240553,-940.08583419,0.00027854,2]
[312543157,1705954240562,-501.44583411,0.00027854,2]
[312543158,1705954240571,-969.80300516,0.00027854,2]
[312543159,1705954240581,-940.08583419,0.00027854,2]
[312543160,1705954240592,-969.80300516,0.00027854,2]
[312543161,1705954240602,-500.0,0.00027854,2]
[312543162,1705954240611,-940.08583419,0.00027854,2]
[312543163,1705954240622,-969.80300516,0.00027854,2]
[312543164,1705954240631,-969.80300516,0.00027854,2]
[312543165,1705954240641,-500.0,0.00027854,2]
[312543166,1705954240650,-940.08583419,0.00027854,2]
[312543167,1705954240659,-940.08583419,0.00027854,2]
[312543168,1705954240668,-500.0,0.00027854,2]
[312543169,1705954240677,-500.0,0.00027854,2]
[312543170,1705954240687,-940.08583419,0.00027854,2]
[312543171,1705954240696,-940.08583419,0.00027854,2]
[312543172,1705954240706,-969.80300516,0.00027854,2]
[312543173,1705954240715,-969.80300516,0.00027854,2]
[312543174,1705954240724,-940.08583419,0.00027854,2]
[312543175,1705954240734,-969.80300516,0.00027854,2]
[312543176,1705954240743,-940.08583419,0.00027854,2]
[312543177,1705954240753,-969.80300516,0.00027854,2]
[312543178,1705954240762,-969.80300516,0.00027854,2]
[312543179,1705954240771,-969.80300516,0.00027854,2]
[312543180,1705954240780,-969.80300516,0.00027854,2]
[312543181,1705954240789,-499.99999999,0.00027854,2]
[312543182,1705954240798,-727.48418585,0.00027854,2]
[312543183,1705954240808,-727.48418585,0.00027854,2]
[312543184,1705954240817,-727.48418585,0.00027854,2]
[312543185,1705954240826,-858.67974412,0.00027854,2]
[312543186,1705954240835,-727.48418585,0.00027854,2]
[312543187,1705954240846,-858.67974412,0.00027854,2]
[312543188,1705954240855,-858.67974412,0.00027854,2]
[312543189,1705954240864,-858.67974412,0.00027854,2]
[312543190,1705954240874,-1163.97469733,0.00027854,2]
[312543191,1705954240883,-500.0,0.00027854,4]
[312543192,1705954240893,-500.0,0.00027854,4]
[312543193,1705954240902,-500.0,0.00027854,4]
[312543194,1705954240911,-500.0,0.00027854,4]
[312543195,1705954240920,-500.0,0.00027854,4]
[312543196,1705954240930,-500.0,0.00027854,4]
[312543197,1705954240940,-500.0,0.00027854,4]
[312543198,1705954240950,-500.0,0.00027854,4]
[312543199,1705954240959,-157.42869219,0.00027854,4]
[312543200,1705954240969,-500.0,0.00027854,4]
[312543201,1705954240979,-500.0,0.00027854,4]
[312543202,1705954240988,-500.0,0.00027854,4]
[312543203,1705954240999,-500.0,0.00027854,4]
[312543204,1705954241009,-500.0,0.00027854,4]
[312543205,1705954241018,-500.0,0.00027854,4]
[312543206,1705954241027,-500.0,0.00027854,4]
[312543207,1705954241037,-500.0,0.00027854,4]
[312543208,1705954241047,-500.0,0.00027854,4]
[312543209,1705954241056,-500.0,0.00027854,4]
[312543210,1705954241065,-353.8863426,0.00027854,4]
[312543211,1705954241075,-500.0,0.00027854,4]
[312543212,1705954241084,-500.0,0.00027854,4]
[312543213,1705954241100,-500.0,0.00027854,4]
[312543214,1705954241110,-191.20344586,0.00027854,4]
[312543215,1705954241120,-413.5412053,0.00027854,4]
[312543216,1705954241129,-500.0,0.00027854,4]
[312543217,1705954241139,-500.0,0.00027854,4]
[312543218,1705954241147,-500.0,0.00027854,4]
[312543219,1705954241157,-500.0,0.00027854,4]
[312543220,1705954241166,-500.0,0.00027854,4]
[312543221,1705954241175,-500.0,0.00027854,4]
[312543222,1705954241185,-500.0,0.00027854,4]
[312543223,1705954241196,-500.0,0.00027854,4]
[312543224,1705954241205,-500.0,0.00027854,4]
[312543225,1705954241215,-500.0,0.00027854,4]
[312543226,1705954241224,-500.0,0.00027854,4]
[312543227,1705954241233,-500.0,0.00027854,4]
[312543228,1705954241243,-500.0,0.00027854,4]
[312543229,1705954241252,-500.0,0.00027854,4]
[312543230,1705954241261,-500.0,0.00027854,4]
[312543231,1705954241271,-650.92609765,0.00027854,4]
[312543232,1705954241280,-500.0,0.00027854,4]
[312543233,1705954241290,-500.0,0.00027854,4]
[312543234,1705954241299,-500.0,0.00027854,4]
[312543235,1705954241308,-500.0,0.00027854,4]
[312543236,1705954241317,-499.99999999,0.00027854,4]
[312543237,1705954241327,-500.0,0.00027854,4]
[312543238,1705954241338,-500.0,0.00027854,4]
[312543239,1705954241348,-500.0,0.00027854,4]
[312543240,1705954241357,-500.0,0.00027854,4]
[312543241,1705954241366,-500.0,0.00027854,4]
[312543242,1705954241376,-500.0,0.00027854,4]
[312543243,1705954241385,-5659.63767953,0.00027855,2]
[312543244,1705954241394,-235210.81313966,0.00027855,7]
[312543245,1705954241603,-10202.84952288,0.00027855,7]
[312543246,1705954241616,-38814.29225317,0.00027855,7]
[312543247,1705954241625,-763.99864371,0.00027855,2]
[312543248,1705954241635,-4000.55725773,0.00027855,2]
[312543249,1705954241644,-300.0,0.00027855,2]
[312543250,1705954241653,-208.00661068,0.00027855,2]
[312543251,1705954241663,-3504.81302219,0.00027855,2]
[312543252,1705954241672,-343.09681091,0.00027855,2]
[312543253,1705954241681,-261.58936724,0.00027855,2]
[312543254,1705954241690,-151.0,0.00027855,2]
[312543255,1705954241699,-151.0,0.00027855,2]
[312543256,1705954241709,-155.824109,0.00027855,2]
[312543257,1705954241718,-1016.715516,0.00027855,2]
[312543258,1705954241727,-1016.715516,0.00027855,2]
[312543259,1705954241736,-10000.0,0.00027855,2]
[312543260,1705954241746,-4312.39089337,0.00027855,2]
[312543261,1705954241758,-994.5,0.00027855,2]
[312543262,1705954241770,-4693.10910663,0.00027855,2]
[312543263,1705954241779,-10000.0,0.00027855,2]
[312543264,1705954241788,-5589.93629509,0.00027855,2]
[312543390,1705954243968,-1571.50470749,0.00023,2]
[312543392,1705954243978,-2418.08776384,0.00027855,2]
[312543431,1705954244512,-476.48639649,0.00027855,2]
[312543436,1705954244573,-1515.48954458,0.00027855,2]
[312543438,1705954244582,-450.0,0.00027855,2]
[312543440,1705954244591,-450.0,0.00027855,2]